[Event "Early-Titled-Tuesday-Blitz-February-20-2024"]
[Site "Chess.com"]
[Date "2024.02.20"]
[Round "5"]
[White "maciek_92"]
[Black "BogdanDeac"]
[Result "0-1"]
[WhiteElo "2810"]
[BlackElo "3046"]
[TimeControl "180+1"]
[EndTime "9:01:24 PST"]
[Termination "BogdanDeac won on time"]

1. c4 {[%clk 0:03:00.9]} 1... e6 {[%clk 0:03:00]} 2. Nf3 {[%clk 0:03:00.9]} 2...
d5 {[%clk 0:02:59.6]} 3. e3 {[%clk 0:03:01.7]} 3... Nf6 {[%clk 0:02:57.4]} 4. b3
{[%clk 0:03:02.2]} 4... b6 {[%clk 0:02:50.8]} 5. Bb2 {[%clk 0:03:02.4]} 5... Bb7
{[%clk 0:02:51.4]} 6. Nc3 {[%clk 0:03:01.5]} 6... Nbd7 {[%clk 0:02:50.6]} 7. d4
{[%clk 0:02:56.3]} 7... a6 {[%clk 0:02:49.7]} 8. Bd3 {[%clk 0:02:56.7]} 8... Bd6
{[%clk 0:02:49.2]} 9. O-O {[%clk 0:02:57.1]} 9... O-O {[%clk 0:02:49.8]} 10. Qe2
{[%clk 0:02:57.8]} 10... dxc4 {[%clk 0:02:46]} 11. bxc4 {[%clk 0:02:56.9]} 11...
c5 {[%clk 0:02:46.6]} 12. Rfd1 {[%clk 0:02:53.6]} 12... cxd4 {[%clk 0:02:36]}
13. exd4 {[%clk 0:02:53.6]} 13... Qc7 {[%clk 0:02:36.3]} 14. h3 {[%clk
0:02:51.4]} 14... Rfe8 {[%clk 0:02:36.1]} 15. Ne4 {[%clk 0:02:39.7]} 15... Nxe4
{[%clk 0:02:30.6]} 16. Bxe4 {[%clk 0:02:40.2]} 16... Bxe4 {[%clk 0:02:31.2]} 17.
Qxe4 {[%clk 0:02:41.1]} 17... Qxc4 {[%clk 0:02:27.2]} 18. Rac1 {[%clk
0:02:40.5]} 18... Qxa2 {[%clk 0:01:55]} 19. Ba1 {[%clk 0:02:08.8]} 19... Qd5
{[%clk 0:01:47.8]} 20. Qc2 {[%clk 0:02:03.5]} 20... b5 {[%clk 0:01:36.8]} 21.
Nd2 {[%clk 0:01:57.9]} 21... Nf6 {[%clk 0:01:25.1]} 22. Nf1 {[%clk 0:01:56.4]}
22... Bf4 {[%clk 0:01:18.3]} 23. Rb1 {[%clk 0:01:54.4]} 23... Rac8 {[%clk
0:00:54.3]} 24. Qd3 {[%clk 0:01:54.6]} 24... Bd6 {[%clk 0:00:51.8]} 25. Qd2
{[%clk 0:01:50.9]} 25... Qe4 {[%clk 0:00:44.1]} 26. Qa5 {[%clk 0:01:50.5]} 26...
Qb7 {[%clk 0:00:42.5]} 27. d5 {[%clk 0:01:29.4]} 27... Nxd5 {[%clk 0:00:39.7]}
28. Nd2 {[%clk 0:01:28]} 28... Qb6 {[%clk 0:00:28.1]} 29. Qa2 {[%clk 0:01:28.2]}
29... Nc3 {[%clk 0:00:26.7]} 30. Bxc3 {[%clk 0:01:26]} 30... Rxc3 {[%clk
0:00:27.1]} 31. Nc4 {[%clk 0:01:26]} 31... Rxc4 {[%clk 0:00:25.2]} 32. Qxc4
{[%clk 0:01:26.4]} 32... Bc5 {[%clk 0:00:20.9]} 33. Qc2 {[%clk 0:01:22.8]} 33...
Rc8 {[%clk 0:00:06.5]} 34. Rbc1 {[%clk 0:01:21.1]} 34... h6 {[%clk 0:00:05.6]}
35. Qe2 {[%clk 0:01:14.8]} 35... b4 {[%clk 0:00:04.7]} 36. Kf1 {[%clk
0:01:07.7]} 36... b3 {[%clk 0:00:04.1]} 37. Rd3 {[%clk 0:00:59.1]} 37... a5
{[%clk 0:00:04.1]} 38. Rdc3 {[%clk 0:00:57.8]} 38... a4 {[%clk 0:00:04.1]} 39.
Qc4 {[%clk 0:00:41.4]} 39... b2 {[%clk 0:00:03.1]} 40. Rb1 {[%clk 0:00:41.8]}
40... a3 {[%clk 0:00:03.6]} 41. Rxa3 {[%clk 0:00:40.2]} 41... Rd8 {[%clk
0:00:01.4]} 42. Ra6 {[%clk 0:00:31.5]} 42... Qb4 {[%clk 0:00:01.2]} 43. Qxb4
{[%clk 0:00:31.9]} 43... Bxb4 {[%clk 0:00:01.9]} 44. Rxb2 {[%clk 0:00:32.6]}
44... Bc3 {[%clk 0:00:02.1]} 45. Rc2 {[%clk 0:00:31.8]} 45... Bf6 {[%clk
0:00:02]} 46. g3 {[%clk 0:00:31.9]} 46... g6 {[%clk 0:00:02.1]} 47. Kg2 {[%clk
0:00:32.3]} 47... Rd7 {[%clk 0:00:02.6]} 48. Ra8+ {[%clk 0:00:31.2]} 48... Kh7
{[%clk 0:00:02.8]} 49. h4 {[%clk 0:00:30.6]} 49... h5 {[%clk 0:00:03.1]} 50. Kf3
{[%clk 0:00:30.4]} 50... Be5 {[%clk 0:00:03.2]} 51. Ke4 {[%clk 0:00:30.7]} 51...
Bf6 {[%clk 0:00:03.7]} 52. Ke3 {[%clk 0:00:30.3]} 52... Bd4+ {[%clk 0:00:03.6]}
53. Kf3 {[%clk 0:00:30.2]} 53... Bf6 {[%clk 0:00:04]} 54. Rc5 {[%clk 0:00:30.2]}
54... Kg7 {[%clk 0:00:04.1]} 55. Rb5 {[%clk 0:00:30.2]} 55... Rd3+ {[%clk
0:00:04]} 56. Ke2 {[%clk 0:00:30.3]} 56... Rd7 {[%clk 0:00:04.6]} 57. Ra3 {[%clk
0:00:30.8]} 57... Be7 {[%clk 0:00:04.3]} 58. Rab3 {[%clk 0:00:31.2]} 58... Bf6
{[%clk 0:00:04.1]} 59. R5b4 {[%clk 0:00:31.5]} 59... Rc7 {[%clk 0:00:04.4]} 60.
Re4 {[%clk 0:00:30.1]} 60... Rc2+ {[%clk 0:00:03.8]} 61. Kf1 {[%clk 0:00:27.7]}
61... Rc7 {[%clk 0:00:04.2]} 62. Rd3 {[%clk 0:00:27.1]} 62... Be7 {[%clk
0:00:03.9]} 63. Kg2 {[%clk 0:00:27.3]} 63... Rb7 {[%clk 0:00:04.2]} 64. f3
{[%clk 0:00:26.8]} 64... Rb2+ {[%clk 0:00:04.1]} 65. Kh3 {[%clk 0:00:27.6]}
65... Rb7 {[%clk 0:00:04.4]} 66. Rc4 {[%clk 0:00:27.7]} 66... Bf6 {[%clk
0:00:04.4]} 67. g4 {[%clk 0:00:24.9]} 67... hxg4+ {[%clk 0:00:04.2]} 68. fxg4
{[%clk 0:00:25.8]} 68... Be7 {[%clk 0:00:04.8]} 69. g5 {[%clk 0:00:26.2]} 69...
Bf8 {[%clk 0:00:03.2]} 70. Rc8 {[%clk 0:00:20]} 70... Be7 {[%clk 0:00:03.5]} 71.
Rdc3 {[%clk 0:00:18.1]} 71... Bd6 {[%clk 0:00:03.2]} 72. Rd8 {[%clk 0:00:18.1]}
72... Be5 {[%clk 0:00:03.3]} 73. Re3 {[%clk 0:00:16.9]} 73... Bb2 {[%clk
0:00:02.9]} 74. Kg3 {[%clk 0:00:15]} 74... Kh7 {[%clk 0:00:02.4]} 75. Kf3 {[%clk
0:00:12.1]} 75... Bg7 {[%clk 0:00:02.7]} 76. Red3 {[%clk 0:00:11.9]} 76... Re7
{[%clk 0:00:02.2]} 77. Ke4 {[%clk 0:00:09.9]} 77... Rb7 {[%clk 0:00:02.5]} 78.
Kf3 {[%clk 0:00:09.6]} 78... Re7 {[%clk 0:00:02.6]} 79. Kg3 {[%clk 0:00:10.1]}
79... Rb7 {[%clk 0:00:02.8]} 80. Rf3 {[%clk 0:00:09.4]} 80... Be5+ {[%clk
0:00:02.9]} 81. Kh3 {[%clk 0:00:09.5]} 81... Kg7 {[%clk 0:00:03.5]} 82. Re3
{[%clk 0:00:09.4]} 82... Bb2 {[%clk 0:00:03.3]} 83. Red3 {[%clk 0:00:09.7]}
83... Ba1 {[%clk 0:00:03.3]} 84. R3d7 {[%clk 0:00:09.1]} 84... Rxd7 {[%clk
0:00:02.9]} 85. Rxd7 {[%clk 0:00:10]} 85... Be5 {[%clk 0:00:03]} 86. Kg4 {[%clk
0:00:10.4]} 86... Bb2 {[%clk 0:00:03]} 87. Rb7 {[%clk 0:00:10.2]} 87... Be5
{[%clk 0:00:02.7]} 88. Kf3 {[%clk 0:00:10.9]} 88... Ba1 {[%clk 0:00:02.1]} 89.
Ke4 {[%clk 0:00:11.3]} 89... Kf8 {[%clk 0:00:02.4]} 90. Rb3 {[%clk 0:00:09.9]}
90... Ke7 {[%clk 0:00:01.2]} 91. Ra3 {[%clk 0:00:09.9]} 91... Bg7 {[%clk
0:00:01.7]} 92. Ra7+ {[%clk 0:00:10.1]} 92... Kf8 {[%clk 0:00:02.4]} 93. Kd3
{[%clk 0:00:09.5]} 93... Be5 {[%clk 0:00:02.5]} 94. Ra4 {[%clk 0:00:08.8]} 94...
Bg3 {[%clk 0:00:02.5]} 95. Ke3 {[%clk 0:00:09.3]} 95... Ke7 {[%clk 0:00:02.8]}
96. Kf3 {[%clk 0:00:09.7]} 96... Be5 {[%clk 0:00:03.5]} 97. Ra7+ {[%clk
0:00:09.1]} 97... Ke8 {[%clk 0:00:03.6]} 98. Kg4 {[%clk 0:00:09.7]} 98... Bc3
{[%clk 0:00:03.6]} 99. Rb7 {[%clk 0:00:09.4]} 99... Kf8 {[%clk 0:00:03.8]} 100.
h5 {[%clk 0:00:09.9]} 100... gxh5+ {[%clk 0:00:03.8]} 101. Kxh5 {[%clk
0:00:10.8]} 101... Be5 {[%clk 0:00:03.7]} 102. Kg4 {[%clk 0:00:10]} 102... Bc3
{[%clk 0:00:03.6]} 103. Rb6 {[%clk 0:00:10.4]} 103... Bd4 {[%clk 0:00:03.6]}
104. Rc6 {[%clk 0:00:10.9]} 104... Ke7 {[%clk 0:00:02.9]} 105. Rc7+ {[%clk
0:00:11.4]} 105... Ke8 {[%clk 0:00:03]} 106. Kf4 {[%clk 0:00:12.1]} 106... Bb2
{[%clk 0:00:03]} 107. Rb7 {[%clk 0:00:12.5]} 107... Bd4 {[%clk 0:00:02.6]} 108.
Ke4 {[%clk 0:00:09.7]} 108... Bc3 {[%clk 0:00:03]} 109. Kd3 {[%clk 0:00:09.8]}
109... Be5 {[%clk 0:00:03.3]} 110. Kc4 {[%clk 0:00:09.9]} 110... Bf4 {[%clk
0:00:03.5]} 111. Rb5 {[%clk 0:00:10.1]} 111... Kf8 {[%clk 0:00:03.6]} 112. Kd4
{[%clk 0:00:10]} 112... Kg7 {[%clk 0:00:03.9]} 113. Ke4 {[%clk 0:00:10.8]}
113... Bc1 {[%clk 0:00:04.2]} 114. Kf3 {[%clk 0:00:11.4]} 114... Bd2 {[%clk
0:00:04.6]} 115. Kg4 {[%clk 0:00:11.6]} 115... Be3 {[%clk 0:00:04.9]} 116. Re5
{[%clk 0:00:11.7]} 116... Bd2 {[%clk 0:00:04.8]} 117. Re2 {[%clk 0:00:12.4]}
117... Bc1 {[%clk 0:00:04.9]} 118. Kh5 {[%clk 0:00:12.6]} 118... Kf8 {[%clk
0:00:04.7]} 119. Rc2 {[%clk 0:00:12.9]} 119... Be3 {[%clk 0:00:04.5]} 120. Rc8+
{[%clk 0:00:13.6]} 120... Ke7 {[%clk 0:00:04.8]} 121. Rh8 {[%clk 0:00:14.3]}
121... Bd4 {[%clk 0:00:04.7]} 122. Rb8 {[%clk 0:00:13.6]} 122... Be5 {[%clk
0:00:04.5]} 123. Rb7+ {[%clk 0:00:13.5]} 123... Kf8 {[%clk 0:00:04.8]} 124. Kh6
{[%clk 0:00:14.2]} 124... Bf4 {[%clk 0:00:05]} 125. Ra7 {[%clk 0:00:13.5]}
125... Ke8 {[%clk 0:00:04.8]} 126. Ra4 {[%clk 0:00:11]} 126... Bd2 {[%clk
0:00:04.3]} 127. Rd4 {[%clk 0:00:10.4]} 127... Be3 {[%clk 0:00:04.5]} 128. Re4
{[%clk 0:00:10.9]} 128... Bc1 {[%clk 0:00:05]} 129. Re1 {[%clk 0:00:10.2]}
129... Bf4 {[%clk 0:00:04.7]} 130. Rf1 {[%clk 0:00:10.5]} 130... Be3 {[%clk
0:00:04.6]} 131. Rf3 {[%clk 0:00:09.6]} 131... Bd2 {[%clk 0:00:04.6]} 132. Rb3
{[%clk 0:00:09.7]} 132... Ke7 {[%clk 0:00:04.1]} 133. Rb7+ {[%clk 0:00:10.1]}
133... Ke8 {[%clk 0:00:04.3]} 134. Kg7 {[%clk 0:00:09.7]} 134... Bxg5 {[%clk
0:00:03.8]} 135. Rxf7 {[%clk 0:00:10.5]} 135... Be7 {[%clk 0:00:04.2]} 136. Rf2
{[%clk 0:00:09.4]} 136... e5 {[%clk 0:00:04]} 137. Re2 {[%clk 0:00:09]} 137...
Bd6 {[%clk 0:00:03.8]} 138. Kf6 {[%clk 0:00:09.5]} 138... Kd7 {[%clk 0:00:04.5]}
139. Rd2 {[%clk 0:00:09]} 139... Kc6 {[%clk 0:00:04.1]} 140. Ke6 {[%clk
0:00:09.1]} 140... Bc7 {[%clk 0:00:04.7]} 141. Rc2+ {[%clk 0:00:09.4]} 141...
Kb7 {[%clk 0:00:05.1]} 142. Kd7 {[%clk 0:00:09.9]} 142... Bb6 {[%clk 0:00:04.7]}
143. Rb2 {[%clk 0:00:10.4]} 143... e4 {[%clk 0:00:04.4]} 144. Kd6 {[%clk
0:00:10.5]} 144... e3 {[%clk 0:00:04.9]} 145. Kd7 {[%clk 0:00:11.1]} 145... Ka7
{[%clk 0:00:04.3]} 146. Kc6 {[%clk 0:00:11.3]} 146... Bd4 {[%clk 0:00:04.3]}
147. Ra2+ {[%clk 0:00:08.2]} 147... Kb8 {[%clk 0:00:04.6]} 148. Kd5 {[%clk
0:00:06.6]} 148... Bb6 {[%clk 0:00:04]} 149. Kc6 {[%clk 0:00:07.1]} 149... Bd4
{[%clk 0:00:03.8]} 150. Rg2 {[%clk 0:00:06.6]} 150... Ka8 {[%clk 0:00:03.1]}
151. Kd5 {[%clk 0:00:06]} 151... Bb6 {[%clk 0:00:02.9]} 152. Ke4 {[%clk
0:00:05.9]} 152... Kb7 {[%clk 0:00:03.3]} 153. Kd5 {[%clk 0:00:06]} 153... Ba7
{[%clk 0:00:02.9]} 154. Rg7+ {[%clk 0:00:06.4]} 154... Ka6 {[%clk 0:00:03.1]}
155. Re7 {[%clk 0:00:05.7]} 155... Bb6 {[%clk 0:00:03.3]} 156. Kc4 {[%clk
0:00:04.9]} 156... Ba7 {[%clk 0:00:03.2]} 157. Re6+ {[%clk 0:00:05.1]} 157...
Bb6 {[%clk 0:00:03.6]} 158. Kb4 {[%clk 0:00:05.2]} 158... Kb7 {[%clk 0:00:03.8]}
159. Kb5 {[%clk 0:00:06]} 159... Bd4 {[%clk 0:00:04.1]} 160. Re7+ {[%clk
0:00:06]} 160... Kb8 {[%clk 0:00:04.5]} 161. Kc6 {[%clk 0:00:06]} 161... Ka8
{[%clk 0:00:04.6]} 162. Rb7 {[%clk 0:00:04.6]} 162... Bc3 {[%clk 0:00:03.2]}
163. Re7 {[%clk 0:00:01.3]} 163... Bd4 {[%clk 0:00:03.6]} 164. Kd5 {[%clk
0:00:01.5]} 164... Bb6 {[%clk 0:00:03.5]} 0-1

[Event "Early-Titled-Tuesday-Blitz-February-20-2024"]
[Site "Chess.com"]
[Date "2024.02.20"]
[Round "6"]
[White "arturdailima"]
[Black "DefiantChair"]
[Result "0-1"]
[WhiteElo "2378"]
[BlackElo "2578"]
[TimeControl "180+1"]
[EndTime "9:04:12 PST"]
[Termination "DefiantChair won by resignation"]

1. e4 {[%clk 0:03:00.9]} 1... c5 {[%clk 0:03:00]} 2. Nc3 {[%clk 0:02:50.2]} 2...
d6 {[%clk 0:03:00.1]} 3. Nf3 {[%clk 0:02:47.7]} 3... Nf6 {[%clk 0:02:58.7]} 4.
d4 {[%clk 0:02:47.5]} 4... cxd4 {[%clk 0:02:58.3]} 5. Nxd4 {[%clk 0:02:48.4]}
5... a6 {[%clk 0:02:59.2]} 6. Rg1 {[%clk 0:02:47.6]} 6... e5 {[%clk 0:02:58]} 7.
Nb3 {[%clk 0:02:47.4]} 7... Be6 {[%clk 0:02:58.5]} 8. g4 {[%clk 0:02:47.1]} 8...
d5 {[%clk 0:02:58.9]} 9. exd5 {[%clk 0:02:42.7]} 9... Nxd5 {[%clk 0:02:59.8]}
10. Nxd5 {[%clk 0:02:37.7]} 10... Qxd5 {[%clk 0:03:00.7]} 11. Qxd5 {[%clk
0:02:35.1]} 11... Bxd5 {[%clk 0:03:01.6]} 12. Be3 {[%clk 0:02:35.2]} 12... Nd7
{[%clk 0:03:01.4]} 13. O-O-O {[%clk 0:02:22.9]} 13... Bf3 {[%clk 0:02:59.8]} 14.
Rd2 {[%clk 0:02:23]} 14... Be7 {[%clk 0:02:52.9]} 15. Rg3 {[%clk 0:02:08.2]}
15... Bc6 {[%clk 0:02:51.3]} 16. Bg2 {[%clk 0:02:04.6]} 16... Nf6 {[%clk
0:02:45.2]} 17. Bxc6+ {[%clk 0:02:02.4]} 17... bxc6 {[%clk 0:02:46.1]} 18. Rg1
{[%clk 0:01:59.4]} 18... Nd5 {[%clk 0:02:44.6]} 19. Bc5 {[%clk 0:01:56.8]} 19...
Bg5 {[%clk 0:02:40.9]} 0-1

[Event "Early-Titled-Tuesday-Blitz-February-20-2024"]
[Site "Chess.com"]
[Date "2024.02.20"]
[Round "6"]
[White "wild3000"]
[Black "Zavgorodniy_Sergiy"]
[Result "0-1"]
[WhiteElo "2426"]
[BlackElo "2621"]
[TimeControl "180+1"]
[EndTime "9:04:28 PST"]
[Termination "Zavgorodniy_Sergiy won by resignation"]

1. d4 {[%clk 0:02:46.3]} 1... d5 {[%clk 0:03:00.1]} 2. Nf3 {[%clk 0:02:46.1]}
2... Nf6 {[%clk 0:03:00.4]} 3. g3 {[%clk 0:02:45.2]} 3... e6 {[%clk 0:03:00.5]}
4. Bg2 {[%clk 0:02:45.4]} 4... Be7 {[%clk 0:03:01.1]} 5. O-O {[%clk 0:02:45.6]}
5... O-O {[%clk 0:03:01.8]} 6. b3 {[%clk 0:02:46.3]} 6... b6 {[%clk 0:03:01.6]}
7. Bb2 {[%clk 0:02:46.9]} 7... Bb7 {[%clk 0:03:02]} 8. c4 {[%clk 0:02:47.2]}
8... Nbd7 {[%clk 0:03:02.2]} 9. Nc3 {[%clk 0:02:47.2]} 9... c5 {[%clk
0:03:02.5]} 10. cxd5 {[%clk 0:02:45.5]} 10... Nxd5 {[%clk 0:03:03.4]} 11. Nxd5
{[%clk 0:02:43.5]} 11... Bxd5 {[%clk 0:03:04.3]} 12. dxc5 {[%clk 0:02:38.4]}
12... Nxc5 {[%clk 0:03:02.2]} 13. Ne5 {[%clk 0:02:29.4]} 13... Bxg2 {[%clk
0:03:00.9]} 14. Kxg2 {[%clk 0:02:29.4]} 14... Qc7 {[%clk 0:02:58.6]} 15. Rc1
{[%clk 0:02:25.2]} 15... Qb7+ {[%clk 0:02:58.6]} 16. f3 {[%clk 0:02:24.8]} 16...
Rfd8 {[%clk 0:02:57.7]} 17. Qc2 {[%clk 0:02:24.8]} 17... Rac8 {[%clk 0:02:58]}
18. Rfd1 {[%clk 0:02:21]} 18... Nd3 {[%clk 0:02:45.5]} 19. Qxc8 {[%clk
0:01:50.3]} 19... Rxc8 {[%clk 0:02:39.6]} 20. Rxc8+ {[%clk 0:01:48.5]} 20...
Qxc8 {[%clk 0:02:40.5]} 21. Nxd3 {[%clk 0:01:46.8]} 21... Qc2 {[%clk 0:02:37.2]}
22. Kf1 {[%clk 0:01:42.2]} 22... Qxd1+ {[%clk 0:02:36.6]} 0-1

[Event "Early-Titled-Tuesday-Blitz-February-20-2024"]
[Site "Chess.com"]
[Date "2024.02.20"]
[Round "6"]
[White "ninguno46"]
[Black "Korchmar_Vasiliy"]
[Result "0-1"]
[WhiteElo "2544"]
[BlackElo "2763"]
[TimeControl "180+1"]
[EndTime "9:04:33 PST"]
[Termination "Korchmar_Vasiliy won by resignation"]

1. e4 {[%clk 0:02:59.6]} 1... c5 {[%clk 0:03:00.1]} 2. Nc3 {[%clk 0:02:59]} 2...
d6 {[%clk 0:03:00.6]} 3. f4 {[%clk 0:02:59.1]} 3... Nc6 {[%clk 0:03:01]} 4. Nf3
{[%clk 0:02:59.6]} 4... Bd7 {[%clk 0:03:01.6]} 5. Bb5 {[%clk 0:02:59.4]} 5... e6
{[%clk 0:03:01.8]} 6. O-O {[%clk 0:02:57.9]} 6... Nf6 {[%clk 0:03:02.2]} 7. d3
{[%clk 0:02:57.8]} 7... Be7 {[%clk 0:03:02.4]} 8. Bxc6 {[%clk 0:02:55.3]} 8...
Bxc6 {[%clk 0:03:02]} 9. Qe2 {[%clk 0:02:55.9]} 9... O-O {[%clk 0:03:02.4]} 10.
e5 {[%clk 0:02:50.2]} 10... Nd5 {[%clk 0:03:01.7]} 11. Ne4 {[%clk 0:02:49.6]}
11... f5 {[%clk 0:02:44.2]} 12. exf6 {[%clk 0:02:41.1]} 12... Bxf6 {[%clk
0:02:44.4]} 13. c4 {[%clk 0:02:29.8]} 13... Ne7 {[%clk 0:02:39.2]} 14. Nxf6+
{[%clk 0:02:29.2]} 14... Rxf6 {[%clk 0:02:39.2]} 15. Bd2 {[%clk 0:02:28.7]}
15... Nf5 {[%clk 0:02:37.4]} 16. Bc3 {[%clk 0:02:27.6]} 16... Rg6 {[%clk
0:02:37.9]} 17. Rae1 {[%clk 0:02:08.2]} 17... Nh4 {[%clk 0:02:37.9]} 18. Nxh4
{[%clk 0:02:05]} 18... Qxh4 {[%clk 0:02:38.8]} 19. Rf2 {[%clk 0:01:59.7]} 19...
Rf8 {[%clk 0:02:38.8]} 20. Qe3 {[%clk 0:01:52.2]} 20... Rf5 {[%clk 0:02:31.7]}
21. Ree2 {[%clk 0:01:50.6]} 21... Rh5 {[%clk 0:02:29.2]} 22. g3 {[%clk
0:01:47.9]} 22... Rxg3+ {[%clk 0:02:25]} 0-1

[Event "Early-Titled-Tuesday-Blitz-February-20-2024"]
[Site "Chess.com"]
[Date "2024.02.20"]
[Round "6"]
[White "ansko1999"]
[Black "Lucky_Puncher"]
[Result "1-0"]
[WhiteElo "2698"]
[BlackElo "2512"]
[TimeControl "180+1"]
[EndTime "9:04:58 PST"]
[Termination "ansko1999 won by resignation"]

1. Nf3 {[%clk 0:03:00.9]} 1... Nf6 {[%clk 0:02:59.5]} 2. e3 {[%clk 0:02:59.1]}
2... g6 {[%clk 0:02:58.8]} 3. b3 {[%clk 0:02:55.8]} 3... Bg7 {[%clk 0:02:58.9]}
4. Bb2 {[%clk 0:02:56.5]} 4... O-O {[%clk 0:02:59.3]} 5. Be2 {[%clk 0:02:52.9]}
5... d6 {[%clk 0:02:58.8]} 6. d4 {[%clk 0:02:49.4]} 6... Nbd7 {[%clk 0:02:55]}
7. c4 {[%clk 0:02:49.3]} 7... Re8 {[%clk 0:02:52.9]} 8. d5 {[%clk 0:02:34.5]}
8... e5 {[%clk 0:02:51]} 9. dxe6 {[%clk 0:02:33.5]} 9... fxe6 {[%clk 0:02:50.8]}
10. O-O {[%clk 0:02:32.2]} 10... e5 {[%clk 0:02:51]} 11. Nc3 {[%clk 0:02:27.3]}
11... Nc5 {[%clk 0:02:42.7]} 12. b4 {[%clk 0:02:22.2]} 12... Nce4 {[%clk
0:02:35.4]} 13. Nxe4 {[%clk 0:02:20.9]} 13... Nxe4 {[%clk 0:02:36.3]} 14. Qd5+
{[%clk 0:02:20.9]} 14... Be6 {[%clk 0:02:20.2]} 15. Qxe4 {[%clk 0:02:21.8]}
15... c6 {[%clk 0:02:21.1]} 16. Qc2 {[%clk 0:02:08.6]} 16... a5 {[%clk
0:02:19.4]} 17. a3 {[%clk 0:02:08.4]} 17... Qb6 {[%clk 0:02:18]} 18. c5 {[%clk
0:02:01.7]} 18... dxc5 {[%clk 0:02:16.2]} 19. bxc5 {[%clk 0:02:00.8]} 19... Qc7
{[%clk 0:02:14.5]} 20. Ng5 {[%clk 0:02:00.5]} 20... Kh8 {[%clk 0:02:02.4]} 21.
Nxe6 {[%clk 0:01:58.9]} 21... Rxe6 {[%clk 0:02:03.3]} 22. Bc4 {[%clk 0:01:58.4]}
22... Re7 {[%clk 0:02:03.8]} 23. Qe4 {[%clk 0:01:56.8]} 23... Rf8 {[%clk
0:02:02.5]} 24. Rad1 {[%clk 0:01:55]} 1-0

[Event "Early-Titled-Tuesday-Blitz-February-20-2024"]
[Site "Chess.com"]
[Date "2024.02.20"]
[Round "6"]
[White "romulocardoso"]
[Black "Cuchulin"]
[Result "1-0"]
[WhiteElo "2346"]
[BlackElo "2056"]
[TimeControl "180+1"]
[EndTime "9:05:06 PST"]
[Termination "romulocardoso won by resignation"]

1. e4 {[%clk 0:03:00.9]} 1... c5 {[%clk 0:03:00]} 2. Nf3 {[%clk 0:03:01.3]} 2...
Nc6 {[%clk 0:03:00.1]} 3. d4 {[%clk 0:03:01.5]} 3... cxd4 {[%clk 0:03:00.4]} 4.
Nxd4 {[%clk 0:03:02.4]} 4... g6 {[%clk 0:02:59.9]} 5. Nc3 {[%clk 0:03:01.1]}
5... Bg7 {[%clk 0:02:57.8]} 6. Be3 {[%clk 0:03:01.7]} 6... Nf6 {[%clk
0:02:58.1]} 7. Bc4 {[%clk 0:03:01.9]} 7... O-O {[%clk 0:02:57.6]} 8. Bb3 {[%clk
0:03:01.4]} 8... Re8 {[%clk 0:02:57.1]} 9. f3 {[%clk 0:02:59.5]} 9... e6 {[%clk
0:02:56.9]} 10. Qd2 {[%clk 0:03:00]} 10... d5 {[%clk 0:02:57.1]} 11. O-O-O
{[%clk 0:02:59.2]} 11... dxe4 {[%clk 0:02:48.6]} 12. fxe4 {[%clk 0:03:00.1]}
12... Ng4 {[%clk 0:02:48]} 13. Nxc6 {[%clk 0:02:57.6]} 13... Qxd2+ {[%clk
0:02:47.9]} 14. Bxd2 {[%clk 0:02:58.5]} 14... bxc6 {[%clk 0:02:47.9]} 15. Be1
{[%clk 0:02:46]} 15... Ba6 {[%clk 0:02:37.4]} 16. h3 {[%clk 0:02:45.9]} 16...
Ne3 {[%clk 0:02:34.8]} 17. Rd2 {[%clk 0:02:46.1]} 17... Nc4 {[%clk 0:02:30.2]}
18. Bxc4 {[%clk 0:02:45.1]} 18... Bxc4 {[%clk 0:02:30.1]} 19. Rd7 {[%clk
0:02:45.7]} 19... Bxc3 {[%clk 0:02:24.2]} 20. Bxc3 {[%clk 0:02:45.1]} 20... a5
{[%clk 0:02:24.1]} 21. Rhd1 {[%clk 0:02:44.6]} 21... a4 {[%clk 0:02:22.9]} 22.
a3 {[%clk 0:02:44.1]} 22... Bb5 {[%clk 0:02:13.1]} 23. Bf6 {[%clk 0:02:43.5]}
23... Rac8 {[%clk 0:02:07.1]} 24. Rb7 {[%clk 0:02:34.8]} 24... Rb8 {[%clk
0:02:07]} 25. Rc7 {[%clk 0:02:33.6]} 25... Rbc8 {[%clk 0:02:05.2]} 26. Rcd7
{[%clk 0:02:31.2]} 26... h5 {[%clk 0:01:52]} 27. g4 {[%clk 0:02:29.9]} 27...
hxg4 {[%clk 0:01:46.5]} 28. hxg4 {[%clk 0:02:30.8]} 28... g5 {[%clk 0:01:26.3]}
29. Rh1 {[%clk 0:02:31.4]} 1-0

[Event "Early-Titled-Tuesday-Blitz-February-20-2024"]
[Site "Chess.com"]
[Date "2024.02.20"]
[Round "6"]
[White "mertfelin"]
[Black "azikom"]
[Result "0-1"]
[WhiteElo "2341"]
[BlackElo "2658"]
[TimeControl "180+1"]
[EndTime "9:05:07 PST"]
[Termination "azikom won by resignation"]

1. e4 {[%clk 0:03:00.4]} 1... c5 {[%clk 0:03:00.9]} 2. Nf3 {[%clk 0:03:00.9]}
2... e6 {[%clk 0:03:01.3]} 3. b3 {[%clk 0:03:00.9]} 3... Nc6 {[%clk 0:03:00.2]}
4. Bb2 {[%clk 0:03:01.1]} 4... a6 {[%clk 0:02:58.6]} 5. c4 {[%clk 0:03:01.3]}
5... d5 {[%clk 0:02:55.7]} 6. exd5 {[%clk 0:02:59.1]} 6... exd5 {[%clk
0:02:56.6]} 7. cxd5 {[%clk 0:02:59.9]} 7... Qxd5 {[%clk 0:02:56.2]} 8. Bc4
{[%clk 0:02:57]} 8... Qe4+ {[%clk 0:02:50.4]} 9. Qe2 {[%clk 0:02:56.9]} 9...
Qxe2+ {[%clk 0:02:50]} 10. Bxe2 {[%clk 0:02:57.8]} 10... Nf6 {[%clk 0:02:47.1]}
11. Nc3 {[%clk 0:02:56.4]} 11... Be7 {[%clk 0:02:46.6]} 12. O-O {[%clk
0:02:55.2]} 12... O-O {[%clk 0:02:46.1]} 13. Rfe1 {[%clk 0:02:55.7]} 13... Bf5
{[%clk 0:02:44]} 14. h3 {[%clk 0:02:54.6]} 14... Rad8 {[%clk 0:02:42.6]} 15.
Rab1 {[%clk 0:02:46.1]} 15... Bxb1 {[%clk 0:02:41.3]} 16. Nxb1 {[%clk
0:02:45.6]} 16... Rfe8 {[%clk 0:02:39.8]} 17. Bc4 {[%clk 0:02:43.7]} 17... Bf8
{[%clk 0:02:37.7]} 18. Rd1 {[%clk 0:02:44.1]} 18... Ne4 {[%clk 0:02:35.1]} 19.
Nc3 {[%clk 0:02:41.6]} 19... Nxc3 {[%clk 0:02:34.5]} 20. Bxc3 {[%clk 0:02:42.2]}
20... b5 {[%clk 0:02:34.9]} 21. Bf1 {[%clk 0:02:42.2]} 21... g6 {[%clk
0:02:34.6]} 22. a4 {[%clk 0:02:40.8]} 22... b4 {[%clk 0:02:30.3]} 23. Bb2 {[%clk
0:02:38.2]} 23... Na5 {[%clk 0:02:15.8]} 24. Bf6 {[%clk 0:02:30.8]} 24... Rd6
{[%clk 0:02:11.1]} 25. Be5 {[%clk 0:02:29.4]} 25... Rd5 {[%clk 0:01:59.7]} 26.
Bc7 {[%clk 0:02:19.3]} 26... Nxb3 {[%clk 0:01:47.6]} 27. Bxa6 {[%clk 0:02:19.5]}
27... Nd4 {[%clk 0:01:35.1]} 28. Ng5 {[%clk 0:02:20.1]} 28... Rxg5 {[%clk
0:01:34.2]} 0-1